[Event "IMSA Blitz Women 2019"]
[Site "Hengshui"]
[Date "2019.05.18"]
[Round "9.2"]
[White "Harika, Dronavalli"]
[Black "Tan, Zhongyi"]
[Result "0-1"]
[ECO "C55"]
[WhiteElo "2492"]
[BlackElo "2513"]
[Annotator "RC"]
[PlyCount "60"]
[EventDate "2019.05.17"]
[EventType "blitz"]
[EventCountry "CHN"]
[SourceTitle "playchess.com"]
[Source "ChessBase"]
[SourceQuality "1"]
[TimeControl "180+2"]

1. e4 {[%emt 0:00:00]} e5 {[%emt 0:00:00]} 2. Nf3 {[%emt 0:00:00]} Nc6 {[%emt 0:00:00]} 3. Bc4 {[%emt 0:00:01]} Nf6 {[%emt 0:00:01]} 4. d4 {[%emt 0:00:01]} exd4 {[%emt 0:00:02]} 5. e5 {[%emt 0:00:00]} Ne4 {[%emt 0:00:01]} 6. Qe2 {[%emt 0:00:02]} Nc5 {[%emt 0:00:03]} 7. O-O {[%emt 0:00:01]} Ne6 {[%emt 0:00:01]} 8. c3 {[%emt 0:00:06]} d5 {[%emt 0:00:07]} 9. exd6 {[%emt 0:00:05]} Bxd6 {[%emt 0:00:03]} 10. cxd4 {[%emt 0:00:02]} O-O {[%emt 0:00:03]} 11. d5 {[%emt 0:00:13]} Ned4 {[%emt 0:00:06]} 12. Nxd4 {[%emt 0:00:02]} Nxd4 {[%emt 0:00:02]} 13. Qe4 {[%emt 0:00:55]} c5 {[%emt 0:00:06]} 14. dxc6 {[%emt 0:00:05]} Bf5 {[%emt 0:00:05]} 15. Qe3 {[%emt 0:00:30]} Nc2 {[%emt 0:00:08]} 16. Qf3 {[%emt 0:00:01]} Bg6 {[%emt 0:00:09]} 17. cxb7 {[%emt 0:00:02]} Rb8 {[%emt 0:00:00]} 18. Nc3 {[%emt 0:00:06]} Qh4 {[%emt 0:00:07]} 19. Bf4 {[%emt 0:00:10]} Bxf4 {[%emt 0:00:23]} 20. g3 {[%emt 0:00:11]} Bxg3 {[%emt 0:00:15]} 21. hxg3 {[%emt 0:00:05]} Qxc4 {[%emt 0:00:02]} 22. Rad1 {[%emt 0:00:02]} Qc7 {[%emt 0:00:08]} 23. Nd5 {[%emt 0:00:26]} Qxb7 {[%emt 0:00:01]} 24. Rd2 {[%emt 0:00:01]} Rfe8 {[%emt 0:00:09]} 25. b3 {[%emt 0:00:17]} Be4 {[%emt 0:00:07]} 26. Qh5 {[%emt 0:00:01]} Bxd5 {[%emt 0:00:03]} 27. Rxd5 {[%emt 0:00:05]} g6 {[%emt 0:00:06]} 28. Qg5 {[%emt 0:00:02]} Nb4 {[%emt 0:00:07]} 29. Rd4 {[%emt 0:00:01]} Nc6 {[%emt 0:00:03]} 30. Rh4 {[%emt 0:00:01]} Ne5 {[%emt 0:00:01]} 0-1

[Event "IMSA Blitz Women 2019"]
[Site "Hengshui"]
[Date "2019.05.18"]
[Round "9.2"]
[White "Ushenina, Anna"]
[Black "Zhao, Xue"]
[Result "1/2-1/2"]
[ECO "E11"]
[WhiteElo "2442"]
[BlackElo "2485"]
[Annotator "RC"]
[PlyCount "46"]
[EventDate "2019.05.17"]
[EventType "blitz"]
[EventCountry "CHN"]
[SourceTitle "playchess.com"]
[Source "ChessBase"]
[SourceQuality "1"]
[TimeControl "180+2"]

1. d4 {[%emt 0:00:00]} e6 {[%emt 0:00:00]} 2. Nf3 {[%emt 0:00:02]} Nf6 {[%emt 0:00:04]} 3. c4 {[%emt 0:00:04]} Bb4+ {[%emt 0:00:03]} 4. Nbd2 {[%emt 0:00:02]} d6 {[%emt 0:00:17]} 5. a3 {[%emt 0:00:03]} Bxd2+ {[%emt 0:00:02]} 6. Qxd2 {[%emt 0:00:01]} Nbd7 {[%emt 0:00:06]} 7. b4 {[%emt 0:00:08]} b6 {[%emt 0:00:01]} 8. Bb2 Bb7 9. e3 {[%emt 0:00:05]} O-O {[%emt 0:00:04]} 10. Be2 {[%emt 0:00:01]} Ne4 {[%emt 0:00:04]} 11. Qc2 {[%emt 0:00:01]} f5 {[%emt 0:00:01]} 12. O-O {[%emt 0:00:12]} Rf6 {[%emt 0:00:22]} 13. d5 {[%emt 0:00:02]} Rh6 {[%emt 0:00:11]} 14. dxe6 {[%emt 0:00:03]} Nf8 {[%emt 0:00:01]} 15. Ne1 {[%emt 0:00:53]} Qh4 {[%emt 0:00:10]} 16. Nf3 {[%emt 0:00:19]} Qh5 {[%emt 0:00:27]} 17. h3 {[%emt 0:00:01]} Ng5 {[%emt 0:00:41]} 18. Qc3 {[%emt 0:01:12]} Nfxe6 {[%emt 0:00:26]} 19. Nxg5 {[%emt 0:00:06]} Qxg5 {[%emt 0:00:01]} 20. f3 {[%emt 0:00:07]} Rxh3 {[%emt 0:00:01]} 21. Rf2 {[%emt 0:00:08]} Qg3 {[%emt 0:00:03]} 22. Qd3 {[%emt 0:00:04]} Qh2+ {[%emt 0:00:02]} 23. Kf1 {[%emt 0:00:01]} Qh1# {[%emt 0:00:01]} 1/2-1/2

[Event "IMSA Blitz Women 2019"]
[Site "Hengshui"]
[Date "2019.05.18"]
[Round "9.2"]
[White "Krush, Irina"]
[Black "Khotenashvili, Bela"]
[Result "1-0"]
[ECO "A40"]
[WhiteElo "2422"]
[BlackElo "2476"]
[Annotator "RC"]
[PlyCount "75"]
[EventDate "2019.05.17"]
[EventType "blitz"]
[EventCountry "CHN"]
[SourceTitle "playchess.com"]
[Source "ChessBase"]
[SourceQuality "1"]
[TimeControl "180+2"]

1. d4 {[%emt 0:00:00]} g6 {[%emt 0:00:00]} 2. c4 {[%emt 0:00:01]} Bg7 {[%emt 0:00:00]} 3. e4 {[%emt 0:00:01]} c5 {[%emt 0:00:00]} 4. d5 {[%emt 0:00:02]} d6 {[%emt 0:00:01]} 5. Nc3 {[%emt 0:00:01]} e6 {[%emt 0:00:01]} 6. Bd3 {[%emt 0:00:05]} Ne7 {[%emt 0:00:01]} 7. Nf3 {[%emt 0:00:05]} O-O {[%emt 0:00:01]} 8. O-O {[%emt 0:00:02]} h6 {[%emt 0:00:06]} 9. a3 {[%emt 0:00:14]} e5 {[%emt 0:00:26]} 10. b4 {[%emt 0:00:28]} Na6 {[%emt 0:00:01]} 11. Rb1 {[%emt 0:00:05]} f5 {[%emt 0:00:08]} 12. Ne1 {[%emt 0:00:10]} f4 {[%emt 0:00:06]} 13. Be2 {[%emt 0:00:01]} h5 {[%emt 0:00:01]} 14. Nd3 {[%emt 0:00:02]} b6 {[%emt 0:00:02]} 15. bxc5 {[%emt 0:00:05]} bxc5 {[%emt 0:00:16]} 16. f3 {[%emt 0:00:12]} g5 {[%emt 0:00:10]} 17. Nf2 {[%emt 0:00:00]} Nc7 {[%emt 0:00:02]} 18. Nb5 {[%emt 0:00:07]} Ne8 {[%emt 0:00:05]} 19. Bd2 {[%emt 0:00:04]} Ng6 {[%emt 0:00:07]} 20. Qa4 {[%emt 0:00:09]} Kh7 {[%emt 0:00:14]} 21. Qa5 {[%emt 0:00:03]} Qe7 {[%emt 0:00:06]} 22. Rb3 {[%emt 0:00:22]} Bf6 {[%emt 0:00:11]} 23. Rfb1 {[%emt 0:00:02]} Rg8 {[%emt 0:00:03]} 24. h3 {[%emt 0:00:00]} Nh4 {[%emt 0:00:05]} 25. Kf1 {[%emt 0:00:04]} Qd7 {[%emt 0:00:24]} 26. Nc3 {[%emt 0:00:06]} Bd8 {[%emt 0:00:11]} 27. Qb5 {[%emt 0:00:04]} Qc7 {[%emt 0:00:04]} 28. Qc6 {[%emt 0:00:03]} Qxc6 {[%emt 0:00:06]} 29. dxc6 {[%emt 0:00:01]} Be6 {[%emt 0:00:20]} 30. Nd5 {[%emt 0:00:27]} Rc8 {[%emt 0:00:15]} 31. Rb7+ {[%emt 0:00:02]} Kg6 {[%emt 0:00:07]} 32. Rxa7 {[%emt 0:00:11]} Rxc6 {[%emt 0:00:11]} 33. Rb8 {[%emt 0:00:01]} Bf6 {[%emt 0:00:05]} 34. Raa8 {[%emt 0:00:10]} Bf7 {[%emt 0:00:02]} 35. Bd1 {[%emt 0:00:01]} Nc7 {[%emt 0:00:04]} 36. Rxg8+ {[%emt 0:00:11]} Bxg8 {[%emt 0:00:01]} 37. Rxg8+ {[%emt 0:00:01]} Kf7 {[%emt 0:00:01]} 38. Rc8 {[%emt 0:00:06]} 1-0

[Event "IMSA Blitz Women 2019"]
[Site "Hengshui"]
[Date "2019.05.18"]
[Round "10.1"]
[White "Gunina, Valentina"]
[Black "Tan, Zhongyi"]
[Result "1/2-1/2"]
[ECO "C50"]
[WhiteElo "2506"]
[BlackElo "2513"]
[Annotator "RC"]
[PlyCount "275"]
[EventDate "2019.05.17"]
[EventType "blitz"]
[EventCountry "CHN"]
[SourceTitle "playchess.com"]
[Source "ChessBase"]
[SourceQuality "1"]
[TimeControl "180+2"]

1. e4 {[%emt 0:00:00]} e5 {[%emt 0:00:00]} 2. Nf3 {[%emt 0:00:00]} Nc6 {[%emt 0:00:00]} 3. Bc4 {[%emt 0:00:02]} Nf6 {[%emt 0:00:01]} 4. d3 {[%emt 0:00:03]} Bc5 {[%emt 0:00:03]} 5. O-O {[%emt 0:00:02]} O-O {[%emt 0:00:02]} 6. Bg5 {[%emt 0:00:01]} h6 {[%emt 0:00:04]} 7. Bh4 {[%emt 0:00:01]} Be7 {[%emt 0:00:01]} 8. c3 {[%emt 0:00:22]} d6 {[%emt 0:00:02]} 9. Nbd2 {[%emt 0:00:08]} Na5 {[%emt 0:00:05]} 10. Bb5 {[%emt 0:00:03]} a6 {[%emt 0:00:01]} 11. Ba4 {[%emt 0:00:01]} b5 {[%emt 0:00:01]} 12. Bc2 {[%emt 0:00:01]} c5 {[%emt 0:00:00]} 13. Re1 {[%emt 0:00:03]} Be6 {[%emt 0:00:08]} 14. Nf1 {[%emt 0:00:02]} Rb8 {[%emt 0:00:04]} 15. Ne3 {[%emt 0:00:07]} b4 {[%emt 0:00:01]} 16. Bxf6 {[%emt 0:00:07]} Bxf6 {[%emt 0:00:01]} 17. Nd5 {[%emt 0:00:02]} Nc6 {[%emt 0:00:21]} 18. Ba4 {[%emt 0:00:07]} Bxd5 {[%emt 0:00:02]} 19. exd5 {[%emt 0:00:01]} Ne7 {[%emt 0:00:00]} 20. Bb3 {[%emt 0:00:10]} Qd7 {[%emt 0:00:08]} 21. d4 {[%emt 0:00:12]} bxc3 {[%emt 0:00:01]} 22. bxc3 {[%emt 0:00:01]} exd4 {[%emt 0:00:05]} 23. cxd4 {[%emt 0:00:05]} cxd4 {[%emt 0:00:13]} 24. Nxd4 {[%emt 0:00:04]} Rb4 {[%emt 0:00:06]} 25. Nc2 {[%emt 0:00:04]} Bxa1 {[%emt 0:00:45]} 26. Nxb4 {[%emt 0:00:03]} Bc3 {[%emt 0:00:01]} 27. Re4 {[%emt 0:00:01]} Qb7 {[%emt 0:00:15]} 28. Qe2 {[%emt 0:00:10]} Bxb4 {[%emt 0:00:11]} 29. Rxe7 {[%emt 0:00:02]} Qb6 {[%emt 0:00:00]} 30. g3 {[%emt 0:00:07]} a5 {[%emt 0:00:07]} 31. Kg2 {[%emt 0:00:05]} Qd4 {[%emt 0:00:01]} 32. Re4 {[%emt 0:00:11]} Qc3 {[%emt 0:00:08]} 33. Bc2 {[%emt 0:00:07]} Bc5 {[%emt 0:00:06]} 34. Rc4 {[%emt 0:00:11]} Qf6 {[%emt 0:00:06]} 35. h4 {[%emt 0:00:07]} Rb8 {[%emt 0:00:30]} 36. Rf4 {[%emt 0:00:15]} Qe5 {[%emt 0:00:06]} 37. Qf3 {[%emt 0:00:07]} Rf8 {[%emt 0:00:08]} 38. h5 {[%emt 0:00:04]} Qg5 {[%emt 0:00:11]} 39. Qd3 {[%emt 0:00:08]} f5 {[%emt 0:00:01]} 40. Qf3 {[%emt 0:00:02]} Bb4 {[%emt 0:00:04]} 41. Bxf5 {[%emt 0:00:02]} Kh8 {[%emt 0:00:01]} 42. Qd3 {[%emt 0:00:14]} Qe7 {[%emt 0:00:06]} 43. Rf3 {[%emt 0:00:06]} Bc5 {[%emt 0:00:03]} 44. Qc4 {[%emt 0:00:07]} Qe5 {[%emt 0:00:03]} 45. Qg4 {[%emt 0:00:02]} Qxd5 {[%emt 0:00:02]} 46. Qg6 {[%emt 0:00:01]} Qg8 {[%emt 0:00:02]} 47. Be6 {[%emt 0:00:01]} Rxf3 {[%emt 0:00:02]} 48. Bxg8 {[%emt 0:00:14]} Rxf2+ {[%emt 0:00:01]} 49. Kh3 {[%emt 0:00:01]} Kxg8 {[%emt 0:00:00]} 50. Kg4 {[%emt 0:00:05]} Rf8 {[%emt 0:00:03]} 51. Qe6+ {[%emt 0:00:02]} Kh8 {[%emt 0:00:01]} 52. Qe7 {[%emt 0:00:04]} Rb8 {[%emt 0:00:03]} 53. a4 {[%emt 0:00:02]} Bb4 {[%emt 0:00:02]} 54. Kf5 {[%emt 0:00:03]} Kg8 {[%emt 0:00:02]} 55. Kg6 {[%emt 0:00:02]} Bc3 {[%emt 0:00:02]} 56. Qe6+ {[%emt 0:00:05]} Kh8 {[%emt 0:00:01]} 57. Kf7 {[%emt 0:00:04]} Rb7+ {[%emt 0:00:03]} 58. Kf8 {[%emt 0:00:02]} Rb8+ {[%emt 0:00:00]} 59. Ke7 {[%emt 0:00:01]} Rb7+ {[%emt 0:00:03]} 60. Kd8 {[%emt 0:00:01]} Rb8+ {[%emt 0:00:01]} 61. Kc7 {[%emt 0:00:01]} Rf8 {[%emt 0:00:01]} 62. Kb6 {[%emt 0:00:03]} Bb4 {[%emt 0:00:01]} 63. g4 {[%emt 0:00:04]} Rf6 {[%emt 0:00:02]} 64. Qe8+ {[%emt 0:00:01]} Kh7 {[%emt 0:00:01]} 65. Qe4+ {[%emt 0:00:01]} Kg8 {[%emt 0:00:01]} 66. Kb5 {[%emt 0:00:02]} Kf8 {[%emt 0:00:02]} 67. Qd5 {[%emt 0:00:01]} Rf7 {[%emt 0:00:06]} 68. Kc6 {[%emt 0:00:01]} Re7 {[%emt 0:00:02]} 69. g5 {[%emt 0:00:03]} hxg5 {[%emt 0:00:02]} 70. Qxg5 {[%emt 0:00:01]} Kf7 {[%emt 0:00:02]} 71. Qg6+ {[%emt 0:00:02]} Kf8 {[%emt 0:00:01]} 72. Qh7 {[%emt 0:00:01]} Re8 {[%emt 0:00:03]} 73. Qf5+ {[%emt 0:00:04]} Kg8 {[%emt 0:00:01]} 74. Qg6 {[%emt 0:00:01]} Rc8+ {[%emt 0:00:06]} 75. Kd7 {[%emt 0:00:02]} Rf8 {[%emt 0:00:01]} 76. h6 {[%emt 0:00:03]} Bc3 {[%emt 0:00:01]} 77. h7+ {[%emt 0:00:05]} Kh8 {[%emt 0:00:01]} 78. Ke7 {[%emt 0:00:02]} Rf6 {[%emt 0:00:08]} 79. Qd3 {[%emt 0:00:03]} Be5 {[%emt 0:00:01]} 80. Qe4 {[%emt 0:00:03]} Rf4 {[%emt 0:00:02]} 81. Qc2 {[%emt 0:00:02]} Rh4 {[%emt 0:00:02]} 82. Qg6 {[%emt 0:00:03]} Rf4 {[%emt 0:00:01]} 83. Qc2 {[%emt 0:00:02]} Rf6 {[%emt 0:00:02]} 84. Qd2 {[%emt 0:00:02]} Kxh7 {[%emt 0:00:02]} 85. Qxa5 {[%emt 0:00:01]} Rh6 {[%emt 0:00:02]} 86. Qd2 {[%emt 0:00:02]} Rh4 {[%emt 0:00:02]} 87. a5 {[%emt 0:00:01]} Bd4 {[%emt 0:00:03]} 88. a6 {[%emt 0:00:03]} Bc5 {[%emt 0:00:01]} 89. Qc2+ {[%emt 0:00:02]} Kh8 {[%emt 0:00:02]} 90. Qa2 {[%emt 0:00:04]} Rh6 {[%emt 0:00:01]} 91. a7 {[%emt 0:00:03]} Bxa7 {[%emt 0:00:01]} 92. Qxa7 {[%emt 0:00:01]} Rf6 {[%emt 0:00:01]} 93. Qg1 {[%emt 0:00:02]} Kg8 {[%emt 0:00:00]} 94. Qg5 {[%emt 0:00:04]} Kh8 {[%emt 0:00:02]} 95. Qd5 {[%emt 0:00:01]} Kh7 {[%emt 0:00:00]} 96. Ke8 {[%emt 0:00:01]} Kh8 {[%emt 0:00:01]} 97. Kd7 {[%emt 0:00:02]} Kh7 {[%emt 0:00:01]} 98. Qh5+ {[%emt 0:00:01]} Kg8 {[%emt 0:00:00]} 99. Ke7 {[%emt 0:00:01]} Rh6 {[%emt 0:00:07]} 100. Qd5+ {[%emt 0:00:02]} Kh8 {[%emt 0:00:01]} 101. Qg5 {[%emt 0:00:05]} Rf6 {[%emt 0:00:01]} 102. Qd5 {[%emt 0:00:02]} Kh7 {[%emt 0:00:01]} 103. Qc4 {[%emt 0:00:02]} Kh8 {[%emt 0:00:01]} 104. Qh4+ {[%emt 0:00:03]} Rh6 {[%emt 0:00:01]} 105. Qe4 {[%emt 0:00:03]} Rf6 {[%emt 0:00:02]} 106. Qh4+ {[%emt 0:00:01]} Rh6 {[%emt 0:00:00]} 107. Qg5 {[%emt 0:00:00]} Rf6 {[%emt 0:00:01]} 108. Qh5+ {[%emt 0:00:01]} Kg8 {[%emt 0:00:01]} 109. Kd7 {[%emt 0:00:02]} Rh6 {[%emt 0:00:01]} 110. Qe8+ {[%emt 0:00:01]} Kh7 {[%emt 0:00:01]} 111. Kc6 {[%emt 0:00:01]} Rf6 {[%emt 0:00:01]} 112. Kd5 {[%emt 0:00:01]} Rh6 {[%emt 0:00:01]} 113. Ke4 {[%emt 0:00:05]} Rf6 {[%emt 0:00:01]} 114. Ke3 {[%emt 0:00:02]} Rh6 {[%emt 0:00:02]} 115. Kf4 {[%emt 0:00:01]} Rf6+ {[%emt 0:00:01]} 116. Kg5 {[%emt 0:00:01]} Rh6 {[%emt 0:00:00]} 117. Qe4+ {[%emt 0:00:01]} Kh8 {[%emt 0:00:01]} 118. Qc4 {[%emt 0:00:04]} Rf6 {[%emt 0:00:01]} 119. Qb3 {[%emt 0:00:05]} Rh6 {[%emt 0:00:01]} 120. Qb8+ {[%emt 0:00:03]} Kh7 {[%emt 0:00:00]} 121. Qb1+ {[%emt 0:00:02]} Kh8 {[%emt 0:00:02]} 122. Qb2 {[%emt 0:00:03]} Rf6 {[%emt 0:00:01]} 123. Qh2+ {[%emt 0:00:01]} Kg8 {[%emt 0:00:01]} 124. Qb2 {[%emt 0:00:01]} Kh8 {[%emt 0:00:01]} 125. Qb3 {[%emt 0:00:01]} Rh6 {[%emt 0:00:01]} 126. Kf5 {[%emt 0:00:02]} Rf6+ {[%emt 0:00:01]} 127. Ke4 {[%emt 0:00:01]} Kh7 {[%emt 0:00:01]} 128. Qc2 {[%emt 0:00:01]} Kh8 {[%emt 0:00:02]} 129. Qd3 {[%emt 0:00:01]} Kh7 {[%emt 0:00:01]} 130. Kd5+ {[%emt 0:00:01]} Kh8 {[%emt 0:00:01]} 131. Kc6 {[%emt 0:00:01]} Kg8 {[%emt 0:00:01]} 132. Kd7 {[%emt 0:00:01]} Kh8 {[%emt 0:00:01]} 133. Ke7 {[%emt 0:00:01]} Kg8 {[%emt 0:00:01]} 134. Qh3 {[%emt 0:00:02]} Rh6 {[%emt 0:00:01]} 135. Qc8+ {[%emt 0:00:03]} Kh7 {[%emt 0:00:01]} 136. Qf5+ {[%emt 0:00:01]} Kg8 {[%emt 0:00:01]} 137. Qd5+ {[%emt 0:00:01]} Kh8 {[%emt 0:00:01]} 138. Qf7 {[%emt 0:00:09]} 1/2-1/2

[Event "IMSA Blitz Women 2019"]
[Site "Hengshui"]
[Date "2019.05.18"]
[Round "10.1"]
[White "Paehtz, Elisabeth"]
[Black "Zhao, Xue"]
[Result "0-1"]
[ECO "A46"]
[WhiteElo "2470"]
[BlackElo "2485"]
[Annotator "ChessBase"]
[PlyCount "84"]
[EventDate "2019.05.17"]
[EventType "blitz"]
[EventCountry "CHN"]
[SourceTitle "playchess.com"]
[Source "ChessBase"]
[SourceQuality "1"]
[TimeControl "180+2"]

1. d4 {[%emt 0:00:00]} Nf6 {[%emt 0:00:00]} 2. Nf3 {[%emt 0:00:00]} b5 {[%emt 0:00:01]} 3. Bg5 {[%emt 0:00:03]} Bb7 {[%emt 0:00:10]} 4. Nbd2 {[%emt 0:00:03]} a6 {[%emt 0:00:10]} 5. e3 {[%emt 0:00:02]} e6 {[%emt 0:00:02]} 6. a4 {[%emt 0:00:07]} b4 {[%emt 0:00:01]} 7. Bd3 {[%emt 0:00:05]} h6 {[%emt 0:00:08]} 8. Bh4 {[%emt 0:00:01]} d6 {[%emt 0:00:12]} 9. O-O {[%emt 0:00:04]} Nbd7 {[%emt 0:00:09]} 10. Qe2 {[%emt 0:00:02]} c5 {[%emt 0:00:19]} 11. a5 {[%emt 0:00:06]} Be7 {[%emt 0:00:04]} 12. c3 {[%emt 0:00:21]} bxc3 {[%emt 0:00:30]} 13. bxc3 {[%emt 0:00:01]} O-O {[%emt 0:00:06]} 14. Rfb1 {[%emt 0:00:02]} Qc7 {[%emt 0:00:03]} 15. Bg3 {[%emt 0:00:02]} Nd5 {[%emt 0:00:15]} 16. Rc1 {[%emt 0:00:02]} Rfc8 {[%emt 0:00:03]} 17. e4 {[%emt 0:00:02]} N5f6 {[%emt 0:00:07]} 18. e5 {[%emt 0:00:04]} Nh5 {[%emt 0:00:04]} 19. exd6 {[%emt 0:00:23]} Nxg3 {[%emt 0:00:01]} 20. hxg3 {[%emt 0:00:12]} Bxd6 {[%emt 0:00:02]} 21. Nc4 {[%emt 0:00:08]} Bf8 {[%emt 0:00:06]} 22. Nfe5 {[%emt 0:00:37]} Rd8 {[%emt 0:00:23]} 23. Nxd7 {[%emt 0:00:05]} Qxd7 {[%emt 0:00:01]} 24. Nb6 {[%emt 0:00:12]} Qc6 {[%emt 0:00:02]} 25. f3 {[%emt 0:00:04]} Rab8 {[%emt 0:00:05]} 26. Bxa6 {[%emt 0:00:10]} Bxa6 {[%emt 0:00:05]} 27. Qxa6 {[%emt 0:00:01]} Qd6 {[%emt 0:00:12]} 28. Qe2 {[%emt 0:00:11]} cxd4 {[%emt 0:00:02]} 29. cxd4 {[%emt 0:00:02]} Qxg3 {[%emt 0:00:01]} 30. Qe5 {[%emt 0:00:06]} Qh4 {[%emt 0:00:05]} 31. Qe4 {[%emt 0:00:08]} Qg5 {[%emt 0:00:01]} 32. Nc4 {[%emt 0:00:11]} Rxd4 {[%emt 0:00:03]} 33. Qe5 {[%emt 0:00:08]} Qxe5 {[%emt 0:00:17]} 34. Nxe5 {[%emt 0:00:02]} Rd5 {[%emt 0:00:01]} 35. Nc6 {[%emt 0:00:01]} Ra8 {[%emt 0:00:03]} 36. Kf1 {[%emt 0:00:04]} Ra6 {[%emt 0:00:06]} 37. Nb8 {[%emt 0:00:03]} Raxa5 {[%emt 0:00:02]} 38. Rxa5 {[%emt 0:00:02]} Rxa5 {[%emt 0:00:01]} 39. Rc8 {[%emt 0:00:02]} Ra8 {[%emt 0:00:07]} 40. Ke2 {[%emt 0:00:07]} g6 {[%emt 0:00:01]} 41. Kd3 {[%emt 0:00:02]} Kg7 {[%emt 0:00:00]} 42. Kc4 {[%emt 0:00:02]} Bd6 {[%emt 0:00:01]} 0-1

[Event "IMSA Blitz Women 2019"]
[Site "Hengshui"]
[Date "2019.05.18"]
[Round "10.1"]
[White "Bodnaruk, Anastasia"]
[Black "Stefanova, Antoaneta"]
[Result "1-0"]
[ECO "C60"]
[WhiteElo "2431"]
[BlackElo "2470"]
[Annotator "RC"]
[PlyCount "125"]
[EventDate "2019.05.17"]
[EventType "blitz"]
[EventCountry "CHN"]
[SourceTitle "playchess.com"]
[Source "ChessBase"]
[SourceQuality "1"]
[TimeControl "180+2"]

1. e4 {[%emt 0:00:00]} e5 {[%emt 0:00:00]} 2. Nf3 {[%emt 0:00:00]} Nc6 {[%emt 0:00:00]} 3. Bb5 {[%emt 0:00:00]} g6 {[%emt 0:00:00]} 4. d4 {[%emt 0:00:02]} exd4 {[%emt 0:00:04]} 5. c3 {[%emt 0:00:01]} Bg7 {[%emt 0:00:17]} 6. cxd4 {[%emt 0:00:02]} Nge7 {[%emt 0:00:11]} 7. d5 {[%emt 0:00:11]} a6 {[%emt 0:00:01]} 8. Be2 {[%emt 0:00:14]} Nb8 {[%emt 0:00:14]} 9. Nc3 {[%emt 0:00:04]} d6 {[%emt 0:00:01]} 10. O-O {[%emt 0:00:03]} O-O {[%emt 0:00:02]} 11. Bg5 {[%emt 0:00:08]} h6 {[%emt 0:00:03]} 12. Be3 {[%emt 0:00:01]} Nd7 {[%emt 0:00:02]} 13. Qd2 {[%emt 0:00:09]} Kh7 {[%emt 0:00:01]} 14. Bd4 {[%emt 0:00:13]} Ne5 {[%emt 0:00:06]} 15. Nxe5 {[%emt 0:00:03]} dxe5 {[%emt 0:00:01]} 16. Bc5 {[%emt 0:00:01]} b6 {[%emt 0:00:01]} 17. Ba3 {[%emt 0:00:05]} Re8 {[%emt 0:00:04]} 18. Rfd1 {[%emt 0:00:07]} Bb7 {[%emt 0:00:06]} 19. Qe3 {[%emt 0:00:05]} Nc8 {[%emt 0:00:07]} 20. f4 {[%emt 0:00:20]} exf4 {[%emt 0:00:12]} 21. Qxf4 {[%emt 0:00:01]} Nd6 {[%emt 0:00:01]} 22. Bd3 {[%emt 0:00:30]} Be5 {[%emt 0:00:10]} 23. Qf2 {[%emt 0:00:01]} Rf8 {[%emt 0:00:15]} 24. Rf1 {[%emt 0:00:06]} Kg7 {[%emt 0:00:03]} 25. Rae1 {[%emt 0:00:03]} Qg5 {[%emt 0:00:17]} 26. Nd1 {[%emt 0:00:04]} Rae8 {[%emt 0:00:10]} 27. b3 {[%emt 0:00:10]} Bc8 28. Ne3 {[%emt 0:00:22]} b5 {[%emt 0:00:07]} 29. Nc2 {[%emt 0:00:21]} Bd7 {[%emt 0:00:10]} 30. Bc5 {[%emt 0:00:02]} a5 {[%emt 0:00:05]} 31. Bd4 {[%emt 0:00:02]} Kh7 {[%emt 0:00:04]} 32. h4 {[%emt 0:00:09]} Qe7 {[%emt 0:00:18]} 33. Bxe5 {[%emt 0:00:07]} Qxe5 {[%emt 0:00:01]} 34. Nd4 {[%emt 0:00:01]} a4 {[%emt 0:00:07]} 35. Bc2 {[%emt 0:00:06]} axb3 {[%emt 0:00:03]} 36. axb3 Kg7 {[%emt 0:00:06]} 37. Qd2 {[%emt 0:00:02]} Qg3 {[%emt 0:00:04]} 38. Rf3 {[%emt 0:00:06]} Qxh4 {[%emt 0:00:03]} 39. e5 {[%emt 0:00:01]} Qg5 {[%emt 0:00:21]} 40. Qxg5 {[%emt 0:00:09]} hxg5 {[%emt 0:00:01]} 41. Kf2 {[%emt 0:00:02]} Nb7 {[%emt 0:00:03]} 42. Rc3 {[%emt 0:00:02]} Rc8 {[%emt 0:00:00]} 43. Kg1 {[%emt 0:00:02]} Rfe8 {[%emt 0:00:02]} 44. e6 {[%emt 0:00:01]} fxe6 {[%emt 0:00:01]} 45. dxe6 {[%emt 0:00:01]} Nd6 {[%emt 0:00:13]} 46. exd7 {[%emt 0:00:02]} Rxe1+ 47. Kf2 Ree8 {[%emt 0:00:05]} 48. dxc8=Q {[%emt 0:00:07]} Rxc8 {[%emt 0:00:02]} 49. Rxc7+ Rxc7 {[%emt 0:00:01]} 50. Ne6+ {[%emt 0:00:04]} Kf6 {[%emt 0:00:01]} 51. Nxc7 {[%emt 0:00:02]} Ke5 {[%emt 0:00:03]} 52. Bxg6 {[%emt 0:00:02]} Kd4 {[%emt 0:00:00]} 53. Bh7 {[%emt 0:00:03]} Kc3 {[%emt 0:00:02]} 54. Bg8 {[%emt 0:00:01]} b4 {[%emt 0:00:02]} 55. Kf3 {[%emt 0:00:02]} Nb7 {[%emt 0:00:03]} 56. Kg4 {[%emt 0:00:03]} Nc5 {[%emt 0:00:01]} 57. Kxg5 {[%emt 0:00:02]} Nxb3 {[%emt 0:00:02]} 58. Bxb3 {[%emt 0:00:03]} Kxb3 {[%emt 0:00:01]} 59. Na6 {[%emt 0:00:01]} Kc4 {[%emt 0:00:01]} 60. Nxb4 {[%emt 0:00:01]} Kxb4 {[%emt 0:00:01]} 61. g4 {[%emt 0:00:01]} Kc5 {[%emt 0:00:00]} 62. Kf6 {[%emt 0:00:00]} Kd6 {[%emt 0:00:01]} 63. g5 {[%emt 0:00:01]} 1-0